Workbook

Sheet Arkusz1
B3: b | C3: 5100 | D3: brutto | I3: pracownik:
B4: c | C4: =J7 -> 699.21 | E4: 0 | F4: =C4/C3 -> 0.1371 | I4: emerytalna | J4: =C3*K4 -> 497.76 | K4: 0.0976 | L4: 13 | N4: =C12/C3 -> 0.709945098
B5: d | C5: =ROUNDDOWN(C3-C4,2) -> 4400.79 | I5: rentowa | J5: =C3*K5 -> 76.5 | K5: 0.015 | L5: 11
B6: e | C6: =C5*J11 -> 396.0711 | E6: 0 | F6: =C6/C3 -> 0.077661 | I6: chorobowa | J6: =C3*K6 -> 124.95 | K6: 0.0245 | L6: 9
B7: f | C7: =C5*J12 -> 341.061225 | J7: =SUM(J4:J6) -> 699.21
B8: g | C8: 111.25
B9: h | C9: =ROUNDDOWN(C3-C8-C4,0) -> 4289
B10: i | C10: =((C9*J13)-46.33) -> 725.69
B11: j | C11: =ROUNDDOWN(C10-C7,) -> 384 | E11: 0 | F11: =C11/C3 -> 0.07529411765 | J11: 0.09
B12: k | C12: =ROUND(C3-C4-C6-C11,2) -> 3620.72 | D12: netto | J12: 0.0775
B13: l | C13: =J21 -> 1051.11 | J13: 0.18
B14: ł | C14: =C3+C13 -> 6151.11
I15: pracodawca:
I16: emerytalna | J16: =C$3*K16 -> 497.76 | K16: 0.0976 | L16: 1
I17: rentowa | J17: =C$3*K17 -> 331.5 | K17: 0.065 | L17: 2
I18: wypadkowa | J18: =ROUND(C$3*K18,2) -> 91.8 | K18: 0.018 | L18: 3
I19: FP | J19: =ROUND(C$3*K19,2) -> 124.95 | K19: 0.0245 | L19: 4
I20: FGŚP | J20: =ROUND(C$3*K20,2) -> 5.1 | K20: 0.001 | L20: 5
J21: =SUM(J16:J20) -> 1051.11

Sheet Kalkulator wynagrodzeń

Sheet Arkusz3
